fUSD/lending_fUSD_20250523
["ID","MTS","AMOUNT","RATE_DAILY","PERIOD"]
[362102492,1747996239791,-439.64,0.00027316,2]
[362102494,1747996239800,-207.4,0.00027322,2]
[362102496,1747996239810,-297.16181103,0.00027338,2]
[362102500,1747996239836,-9106.55818897,0.00027338,2]
[362102502,1747996239847,-1542.75,0.00027338,2]
[362102504,1747996239857,-157.38,0.00027338,2]
[362102506,1747996239866,-287.37,0.00027397,2]
[362102508,1747996239875,-150.0,0.00027397,2]
[362102510,1747996239885,-157.38,0.00027406,2]
[362102512,1747996239895,-782.358289,0.00027624,4]
[362102514,1747996239903,-322.33601374,0.000277,10]
[362102519,1747996239941,-77.66398626,0.000277,10]
[362102521,1747996239950,-800.0,0.000278,10]
[362102523,1747996239960,-159.57698987,0.0002789,2]
[362102525,1747996239970,-167.62513039,0.0002789,2]
[362102527,1747996239979,-500.0,0.000279,2]
[362102529,1747996239989,-1200.0,0.000279,10]
[362102531,1747996239998,-500.0,0.00027973,5]
[362102533,1747996240007,-800.91,0.00027979,2]
[362102535,1747996240016,-800.91,0.00027979,2]
[362102537,1747996240026,-364.08336886,0.00027989,2]
[362102539,1747996240034,-471.61501186,0.00027989,2]
[362102540,1747996240044,-500.0,0.00027989,2]
[362102542,1747996240053,-222.25978602,0.00027989,2]
[362102545,1747996240063,-246.55034421,0.00027989,2]
[362102547,1747996240073,-420.46480017,0.00027989,4]
[362102548,1747996240082,-420.0,0.00027989,4]
[362102551,1747996240092,-420.0,0.00027989,4]
[362102552,1747996240101,-420.0,0.00027989,4]
[362102554,1747996240110,-420.0,0.00027989,4]
[362102556,1747996240120,-420.0,0.00027989,4]
[362102558,1747996240129,-520.64,0.00027989,4]
[362102560,1747996240138,-420.0,0.00027989,4]
[362102562,1747996240148,-420.0,0.00027989,4]
[362102564,1747996240158,-420.0,0.00027989,4]
[362102566,1747996240167,-420.0,0.00027989,4]
[362102568,1747996240176,-455.24188578,0.00027989,4]
[362102570,1747996240185,-8467.80965778,0.00027989,4]
[362102574,1747996240212,-2883.40642833,0.00027989,4]
[362102825,1747996242701,-267.45896499,0.00027989,4]
[362102832,1747996242757,-152.54103501,0.00027989,4]
[362102834,1747996242768,-420.0,0.00027989,2]
[362102836,1747996242778,-420.0,0.00027989,4]
[362102838,1747996242787,-420.0,0.00027989,4]
[362102840,1747996242796,-7019.55892442,0.00027989,4]
[362102848,1747996242868,-38777.16566294,0.00027989,4]
[362102860,1747996242977,-42448.0,0.00027989,4]
[362103129,1747996245698,-528.70331689,0.000279,18]
[362103131,1747996245708,-420.0,0.00027989,4]
[362103133,1747996245717,-901.25083123,0.00027989,4]
[362103148,1747996245864,-420.0,0.00027989,4]
[362103150,1747996245874,-542.81953064,0.00027989,4]
[362103735,1747996367814,-362.52243138,0.00042432,120]
[362103736,1747996367839,-1000.0,0.00042432,60]
[362103737,1747996367863,-1000.0,0.00042432,120]
[362103738,1747996367888,-1000.0,0.00042432,60]
[362103739,1747996367913,-364.33052216,0.00042432,60]
[362103740,1747996367937,-1000.0,0.00042432,60]
[362103741,1747996367962,-1000.0,0.00042432,60]
[362103742,1747996367986,-1000.0,0.00042432,60]
[362103743,1747996368010,-1000.0,0.00042432,60]
[362103744,1747996368033,-1000.0,0.00042432,120]
[362103745,1747996368057,-1000.0,0.00042432,60]
[362103746,1747996368080,-1000.0,0.00042432,60]
[362103747,1747996368103,-151.76091328,0.00042432,60]
[362103748,1747996368127,-1150.0,0.00042432,120]
[362103749,1747996368150,-161.24733728,0.00042432,120]
[362103750,1747996368175,-500.0,0.00042432,120]
[362103751,1747996368200,-400.52154227,0.00042432,120]
[362103752,1747996368223,-1084.50110966,0.00042432,120]
[362103753,1747996368246,-2613.17458216,0.00042432,120]
[362103754,1747996368269,-1192.0,0.00042432,120]
[362103755,1747996368293,-1189.0,0.00042432,80]
[362103756,1747996368317,-281878.40261905,0.00042432,120]
[362103757,1747996368342,-1020.99741989,0.00042432,91]
[362103758,1747996368365,-778.20412777,0.00042432,120]
[362103759,1747996368389,-439.77539202,0.00042432,120]
[362103760,1747996368413,-496.4353281,0.00042432,120]
[362103761,1747996368436,-330.14125466,0.00042432,120]
[362103762,1747996368460,-862.25540634,0.00042432,120]
[362103763,1747996368484,-171.32880496,0.00042432,120]
[362103764,1747996368508,-226.29693334,0.00042432,120]
[362103765,1747996368532,-758.37545062,0.00042432,120]
[362103766,1747996368556,-751.08691941,0.00042432,120]
[362103767,1747996368579,-404.08671912,0.00042432,120]
[362103768,1747996368605,-641.68231289,0.00042432,120]
[362103769,1747996368628,-472.66563273,0.00042432,120]
[362103770,1747996368651,-227.84015176,0.00042432,120]
[362103771,1747996368674,-193.86123738,0.00042432,120]
[362103772,1747996368698,-499.29208162,0.00042432,120]
[362103773,1747996368722,-371.87598247,0.00042432,120]
[362103774,1747996368746,-567.86322083,0.00042432,120]
[362103775,1747996368771,-1045.1383711,0.00042432,120]
[362103776,1747996368795,-975.40727128,0.00042432,120]
[362103777,1747996368820,-780.78017644,0.00042432,60]
[362103778,1747996368844,-1084.80943622,0.00042432,120]
[362103779,1747996368868,-174.54326052,0.00042432,120]
[362103780,1747996368891,-359.38594696,0.00042432,120]
[362103781,1747996368916,-878.07602924,0.00042432,120]
[362103782,1747996368939,-756.0,0.00042432,120]
[362103783,1747996368962,-628.62927643,0.00042432,120]
[362103784,1747996368986,-486.20069959,0.00042432,120]
[362103785,1747996369010,-285.7899944,0.00042432,120]
[362103786,1747996369035,-160.75775526,0.00042432,120]
[362103787,1747996369059,-183.44589756,0.00042432,120]
[362103788,1747996369084,-378.17850898,0.00042432,120]
[362103789,1747996369109,-186.45708363,0.00042432,120]
[362103790,1747996369135,-446.02658472,0.00042432,60]
[362103791,1747996369160,-470.1022,0.00042432,120]
[362103792,1747996369186,-152.09138393,0.00042432,120]
[362103793,1747996369213,-500.0,0.00042432,120]
[362103794,1747996369240,-500.0,0.00042432,120]
[362103795,1747996369265,-500.0,0.00042432,120]
[362103796,1747996369300,-500.0,0.00042432,120]
[362103797,1747996369333,-500.0,0.00042432,120]
[362103798,1747996369363,-579.86,0.00042432,120]
[362103799,1747996369392,-7378.33890575,0.00042432,120]
[362103800,1747996369423,-500.0,0.00042432,120]
[362103801,1747996369453,-500.0,0.00042432,120]
[362103802,1747996369483,-500.0,0.00042432,120]
[362103803,1747996369520,-579.16,0.00042432,120]
[362103804,1747996369550,-5000.0,0.00042432,120]
[362103805,1747996369580,-1415.08846244,0.00042432,120]
[362103806,1747996369607,-1050.70373614,0.00042432,120]
[362103807,1747996369636,-4488.09424147,0.00042432,120]
[362103808,1747996369665,-3466.33367185,0.00042432,120]
[362103809,1747996369693,-888.0527572,0.00042432,120]
[362103810,1747996369722,-11546.17988957,0.00042432,120]
[362103811,1747996369749,-2496.07355599,0.00042432,60]
[362103812,1747996369779,-380.335,0.00042432,120]
[362103813,1747996369809,-3990.0,0.00042432,90]
[362103814,1747996369837,-1676.94247362,0.00042432,120]
[362103815,1747996369866,-1006.74724908,0.00042432,120]
[362103816,1747996369896,-735726.41,0.00042432,60]
[362103817,1747996369925,-150.89202787,0.00042432,120]
[362103818,1747996369954,-191.5808532,0.00042432,120]
[362103819,1747996369985,-6307.0,0.00042432,60]
[362103820,1747996370013,-6000.0,0.00042432,60]
[362103821,1747996370042,-5000.0,0.00042432,120]
[362103822,1747996370072,-475.06135101,0.00042432,120]
[362103823,1747996370099,-15999.04087591,0.00042432,120]
[362103824,1747996370126,-538575.0,0.00042432,60]
[362103825,1747996370153,-459.44095808,0.00042432,120]
[362103826,1747996370180,-5000.0,0.00042432,120]
[362103827,1747996370211,-7003.0,0.00042432,120]
[362103828,1747996370237,-125129.9671034,0.00042432,60]
[362103829,1747996370263,-38759.26073999,0.00042432,120]
[362103830,1747996370289,-4894.45117249,0.00042432,120]
[362103831,1747996370318,-10641.40250178,0.00042432,120]
[362103832,1747996370347,-166.99174055,0.00042432,120]
[362103833,1747996370374,-288020.31201603,0.00042432,90]
[362103834,1747996370400,-32225.0,0.00042432,120]
[362103835,1747996370427,-1024.0,0.00042432,120]
[362103836,1747996370454,-155.0,0.00042432,120]
[362103837,1747996370480,-993.39712853,0.00042432,120]
[362103838,1747996370511,-500.0,0.00042432,120]
[362103839,1747996370539,-354.59583341,0.00042432,120]
[362103840,1747996370567,-205.27543965,0.00042432,120]
[362103841,1747996370603,-191.14186846,0.00042432,60]
[362103842,1747996370641,-281.65733595,0.00042432,120]
[362103843,1747996370673,-2797.8100959,0.00042432,120]
[362103844,1747996370703,-1929.40998797,0.00042432,120]
[362103845,1747996370732,-1097.7684978,0.00042432,120]
[362103846,1747996370762,-14437.33416681,0.00042432,120]
[362103847,1747996370790,-150.03382465,0.00042432,120]
[362103848,1747996370821,-260.77680437,0.00042432,120]
[362103849,1747996370849,-855.42213924,0.00042432,120]
[362103850,1747996370879,-6844.57095911,0.00042432,60]
[362103851,1747996370911,-160.36854841,0.00042432,120]
[362103852,1747996370939,-522.0,0.00042432,120]
[362103853,1747996370968,-50881.53,0.00042432,60]
[362103854,1747996370996,-692.41895732,0.00042432,120]
[362103855,1747996371024,-4600.0,0.00042432,120]
[362103856,1747996371053,-834.52252827,0.00042432,120]
[362103857,1747996371089,-152.95705839,0.00042432,120]
[362103858,1747996371120,-154.63096234,0.00042432,120]
[362103859,1747996371151,-421.17612636,0.00042432,120]
[362103860,1747996371183,-2053.44340925,0.00042432,120]
[362103861,1747996371212,-4063.49304905,0.00042432,120]
[362103862,1747996371240,-2912.33729142,0.00042432,120]
[362103863,1747996371268,-10000.0,0.00042432,120]
[362103864,1747996371297,-10000.0,0.00042432,120]
[362103865,1747996371325,-673.00437512,0.00042432,120]
[362103866,1747996371353,-73484.46425587,0.00042432,120]
[362103867,1747996371381,-246.09012451,0.00042432,120]
[362103868,1747996371408,-389883.30143129,0.00042432,60]
[362103874,1747996595796,195854.93925173,0.00027397,120]
[362103875,1747996595825,181750.06074827,0.00027397,120]
[362103879,1747996702173,178.0,0.0002739,120]
[362103880,1747996801669,290.56,0.00026626,120]
[362103881,1747996956672,3158.234251,0.0002739,120]
[362103883,1747997041594,175.69,0.00013699,2]
[362103884,1747997135167,-300.0,0.00019999,2]
[362103885,1747997135190,-1200.0,0.00019999,2]
[362103886,1747997135212,-150.0,0.00019999,2]
[362103887,1747997135235,-19187.18735141,0.0002,2]
[362103888,1747997227086,641.9959,0.00025,60]
[362103889,1747997231123,-1850.13036978,0.0002,2]
[362103890,1747997235097,-431.2986038,0.0002,2]
[362103891,1747997291494,218.0,0.00027397,120]
[362103906,1747997431942,-1100.43320275,0.00019999,2]
[362103985,1747997437733,-99.56679725,0.00019999,2]
[362103986,1747997437742,-3000.10607231,0.0002,2]
[362103987,1747997438001,-3179.95002997,0.0002,2]
[362104193,1747997442926,-5309.99999996,0.0002,2]
[362104194,1747997443066,-30157.98327923,0.0002,2]
[362104195,1747997443139,-1037.5,0.0002,2]
[362104204,1747997446122,-548.86531848,0.0002,2]
[362104208,1747997475919,250.0,0.00015,2]
[362104209,1747997476987,300.0,0.00017,2]
[362104215,1747997596527,5000.8870403,0.00027397,120]
[362104216,1747997780640,2363.56,0.00017101,2]
[362104217,1747998042044,173.82,0.00026767,120]
[362104218,1747998249114,185.28,0.00013699,2]
[362104220,1747998261257,1000.0,0.00027396,120]
[362104221,1747998311446,1000.0,0.0002739,120]
[362104222,1747998313477,1000.0,0.0002739,120]
[362104223,1747998328675,499.42357294,0.0002739,120]
[362104224,1747998337275,-350.0,0.00019,2]
[362104225,1747998337296,-170.7393119,0.00019793,2]
[362104226,1747998337316,-268.52779771,0.000198,2]
[362104227,1747998337336,-169.28,0.00019893,2]
[362104228,1747998337357,-6501.9293868,0.0002,2]
[362104229,1747998337378,-367.18628162,0.00020087,2]
[362104230,1747998337399,-185.28,0.00020187,2]
[362104231,1747998337423,-151.0,0.00020229,2]
[362104232,1747998337444,-151.0,0.00020266,2]
[362104233,1747998337464,-1200.0,0.00020509,2]
[362104234,1747998337486,-250.0,0.000209,2]
[362104235,1747998337510,-200.0,0.00021,2]
[362104236,1747998337530,-342.0,0.00021958,2]
[362104237,1747998337551,-250.0,0.00021999,2]
[362104238,1747998337571,-300.0,0.00022098,2]
[362104239,1747998337593,-200.0,0.000221,2]
[362104240,1747998337618,-511.0798731,0.000223,7]
[362104241,1747998337644,-511.07987299,0.000223,7]
[362104242,1747998337669,-511.07987299,0.00022417,7]
[362104243,1747998337691,-1680.0,0.00022427,2]
[362104244,1747998337711,-200.0,0.0002251,2]
[362104245,1747998337734,-367.18628161,0.00023041,2]
[362104246,1747998337754,-200.0,0.000231,2]
[362104247,1747998337779,-511.07987299,0.00023176,8]
[362104248,1747998337800,-326.78,0.00023778,2]
[362104249,1747998337821,-173.82,0.00023793,2]
[362104250,1747998337844,-160.56,0.00023798,2]
[362104251,1747998337864,-173.36,0.00023836,2]
[362104252,1747998337885,-561.61,0.00023848,2]
[362104253,1747998337911,-511.07987299,0.00023934,10]
[362104254,1747998337933,-748.09,0.00024049,2]
[362104255,1747998337955,-303.0,0.000241,2]
[362104256,1747998337976,-150.0,0.00024119,7]
[362104257,1747998337999,-150.0,0.00024119,2]
[362104258,1747998338020,-1172.76,0.00024188,2]
[362104259,1747998338040,-182.33,0.00024213,2]
[362104260,1747998338062,-738.0,0.00024524,2]
[362104261,1747998338087,-511.07987299,0.00024693,11]
[362104262,1747998338107,-472.95,0.00024826,2]
[362104263,1747998338127,-10219.26494622,0.00025,2]
[362104264,1747998338147,-150.0,0.00025024,2]
[362104265,1747998338167,-250.0,0.00025099,2]
[362104266,1747998338187,-200.0,0.000251,2]
[362104267,1747998338207,-226.31,0.00025217,2]
[362104268,1747998338233,-511.07987299,0.00025452,13]
[362104269,1747998338253,-167.78,0.00025472,2]
[362104270,1747998338273,-3684.93,0.00025626,2]
[362104271,1747998338294,-207.0,0.00025672,2]
[362104272,1747998338316,-1000.0,0.00025827,2]
[362104273,1747998338336,-1129.80145976,0.00025944,2]
[362104274,1747998338361,-500.0,0.00025953,2]
[362104275,1747998338386,-500.0,0.00025953,2]
[362104276,1747998338411,-305.895,0.00025953,2]
[362104277,1747998338436,-23900.0,0.00025954,2]
[362104278,1747998338456,-833.58,0.00026095,2]
[362104279,1747998338482,-511.07987299,0.0002621,14]
[362104280,1747998338504,-864.48,0.00026228,2]
[362104281,1747998338525,-748.09,0.00026312,2]
[362104282,1747998338547,-185.28,0.00026676,2]
[362104283,1747998338572,-511.07987299,0.00026969,16]
[362104284,1747998338593,-1000.0,0.00027,5]
[362104285,1747998338615,-312.943316,0.00027184,4]
[362104286,1747998338636,-185.4387383,0.00027296,2]
[362104287,1747998338657,-173.86776368,0.00027296,2]
[362104288,1747998338678,-237.85903978,0.00027296,2]
[362104289,1747998338698,-227.62094289,0.00027296,4]
[362104290,1747998338723,-33387.61839778,0.00027297,4]
[362104291,1747998430148,-367.18628161,0.00025995,2]
[362104292,1747998430171,-200.0,0.00026587,2]
[362104293,1747998430194,-200.0,0.00026638,2]
[362104294,1747998430216,-281.648984,0.00027184,4]
[362104295,1747998430238,-159.57698981,0.00027197,2]
[362104296,1747998430261,-166.50132784,0.00027295,2]
[362104297,1747998430285,-409.1522342,0.00027296,4]
[362104328,1747998632031,-754.44,0.00024701,2]
[362104329,1747998632041,-1000.0,0.00026456,2]
[362104330,1747998632051,-50.32575229,0.00026518,2]
[362104331,1747998632138,-1802.09424771,0.00026518,2]
[362104332,1747998632148,-371.11575229,0.00026965,2]
[362104333,1747998632159,-383.32424771,0.00026965,2]
[362104334,1747998632169,-253.484086,0.00027184,4]
[362104335,1747998632179,-1000.0,0.00027196,2]
[362104336,1747998632188,-2500.0,0.00027196,2]
[362104337,1747998632199,-428.16,0.000272,2]
[362104338,1747998632209,-13918.54585508,0.00027286,3]
[362104339,1747998632246,-1233.532305,0.00027286,3]
[362104340,1747998632318,-561.48680741,0.00027286,3]
[362104341,1747998632329,-533.257335,0.00027286,3]
[362104345,1747998637948,-59943.61512144,0.00027286,3]
[362104365,1747998638596,-50466.56621307,0.00027286,3]
[362104367,1747998638606,-11514.2730579,0.00027287,3]
[362104369,1747998638615,-7930.43827213,0.00027287,2]
[362104371,1747998638624,-6893.37221566,0.00027287,2]
[362104373,1747998638635,-172.38703256,0.00027287,2]
[362104375,1747998638644,-167.62513039,0.00027297,2]
[362104377,1747998638655,-128952.85219964,0.00027372,4]
[362104379,1747998638666,-1282.70603472,0.00027372,4]
[362104381,1747998638677,-9811.55891782,0.00027372,4]
[362104384,1747998638696,-517.29396528,0.00027372,4]
[362104529,1747998640161,-434.89176453,0.00027372,4]
[362104536,1747998640215,-269.91,0.00027372,4]
[362104542,1747998640269,-7871.7882867,0.00027372,4]
[362104568,1747998640532,-754.87352149,0.00027372,4]
[362104616,1747998643314,-299.25183862,0.00027372,4]
[362104617,1747998643474,-105921.06132072,0.00027372,4]
[362104621,1747998646169,-835.62019127,0.00027372,4]
[362104622,1747998646186,-301.35221184,0.00027372,4]
[362104635,1747998691516,1000.0,0.000273,120]
[362104637,1747999107007,1000.0,0.00027397,120]
[362104638,1747999115198,1000.0,0.00027397,120]
[362104639,1747999123613,1000.0,0.00027397,120]
[362104640,1747999140628,232.44,0.0002652,120]
[362104641,1747999238651,157.48,0.00013699,2]
[362104643,1747999280769,250.0,0.00015,2]
[362104644,1747999618239,969.36231975,0.00015,14]
[362104645,1747999647118,-157.48,0.00020187,2]
[362104646,1747999647139,-1685.79958633,0.00024,5]
[362104647,1747999650163,-2046.32365864,0.00024,5]
[362104649,1747999714797,3040.991491,0.0002739,120]
[362104650,1747999715659,2078.83679793,0.00025,120]
[362104656,1747999726422,1645.05733164,0.00027,120]
[362104670,1747999832197,-151.0,0.00022534,2]
[362104671,1747999832208,-4579.69291684,0.00024,5]
[362104672,1747999832218,-5561.0,0.000244,5]
[362104673,1747999832228,-688.98,0.00024487,2]
[362104674,1747999832238,-357.75591118,0.000249,12]
[362104675,1747999832248,-242.53873725,0.00025,3]
[362104676,1747999832258,-2174.41864033,0.00025,2]
[362104677,1747999832268,-357.75591109,0.00025521,13]
[362104678,1747999832277,-357.75591109,0.00026141,14]
[362104679,1747999832287,-1000.0,0.00026181,2]
[362104680,1747999832296,-207.0,0.00026393,2]
[362104681,1747999832307,-207.4,0.00026485,2]
[362104682,1747999832316,-668.65185757,0.00026485,2]
[362104683,1747999832326,-210.22428851,0.00026485,2]
[362104684,1747999832336,-11142.12292835,0.000265,2]
[362104685,1747999832348,-12757.87707165,0.000265,2]
[362104686,1747999832357,-182.33,0.00026501,2]
[362104687,1747999832368,-237.2,0.00026512,2]
[362104688,1747999832378,-6710.27421781,0.0002652,2]
[362104689,1747999832391,-933.27712356,0.0002652,2]
[362104690,1747999832452,-616.45002,0.0002652,2]
[362104780,1747999838195,-401.50997972,0.0002652,2]
[362104781,1747999838359,-1631.36774916,0.0002652,2]
[362104786,1747999840329,-3868.2,0.0002652,2]
[362104787,1747999840341,-276.97090975,0.0002652,2]
[362104788,1747999840351,-150.0,0.0002652,7]
[362104789,1747999840361,-432.24,0.00026547,2]
[362104790,1747999840371,-157.48,0.00026676,2]
[362104791,1747999840380,-160.67850088,0.00026751,2]
[362104792,1747999840541,-257.542645,0.00026751,2]
[362104793,1747999840555,-270.75885412,0.00026751,2]
[362104794,1747999840564,-357.75591109,0.00026762,15]
[362104795,1747999840574,-250.0,0.00027,2]
[362104796,1747999840583,-821.69445964,0.00027033,2]
[362104797,1747999840593,-200.0,0.00027079,2]
[362104798,1747999840604,-228.135677,0.00027149,4]
[362104799,1747999840614,-165.08,0.00027268,2]
[362104800,1747999840624,-5348.6242,0.00027297,2]
[362104801,1747999840633,-1222.36422,0.00027297,2]
[362104802,1747999840643,-2500.0,0.00027323,2]
[362104803,1747999840652,-1175.8979934,0.00027324,2]
[362104810,1747999843564,-6749.99533206,0.00027324,2]
[362104811,1747999843574,-1268.86673786,0.00027324,2]
[362104847,1747999846394,-4935.16825627,0.00027324,2]
[362104848,1747999846403,-2305.75805185,0.00027364,2]
[362104855,1748000048714,1000.0,0.0002739,120]
[362104856,1748000051305,1000.0,0.0002739,120]
[362104857,1748000310416,173.82,0.0002637,120]
[362104869,1748000758516,158.22,0.00013699,2]
[362104881,1748000831122,-158.22,0.00020951,2]
[362104882,1748000831156,-1691.24214882,0.00024,14]
[362104883,1748000841127,-742.1215604,0.0002,2]
[362104897,1748001032291,-4645.68,0.0002,2]
[362104898,1748001032310,-274.1118893,0.0002,2]
[362104899,1748001032320,-25.8881107,0.00022,5]
[362104900,1748001032400,-2402.1118893,0.00022,5]
[362104901,1748001032409,-200.0,0.00022,2]
[362104902,1748001032420,-250.0,0.00022,2]
[362104903,1748001032429,-643.28,0.00024423,2]
[362104904,1748001032438,-385.1325555,0.000249,12]
[362104905,1748001032448,-385.13255525,0.00025521,13]
[362104906,1748001032457,-385.13255525,0.00026141,14]
[362104907,1748001032466,-250.0,0.00026267,2]
[362104908,1748001032475,-1000.0,0.00026347,2]
[362104909,1748001032485,-150.0,0.00026412,7]
[362104910,1748001032495,-2097.26,0.00026469,2]
[362104911,1748001032504,-643.28,0.00026686,2]
[362104912,1748001032514,-385.13255525,0.00026762,15]
[362104913,1748001032523,-400.0,0.000268,9]
[362104914,1748001032533,-300.0,0.000268,9]
[362104915,1748001032542,-205.322109,0.00026816,4]
[362104916,1748001032555,-800.0,0.000269,9]
[362104917,1748001032565,-700.0,0.000269,9]
[362104918,1748001032575,-202.82239044,0.00026978,2]
[362104919,1748001032584,-1018.63685,0.0002709,2]
[362104920,1748001032594,-200.0,0.00027145,2]
[362104921,1748001032604,-5967.1431581,0.00027239,2]
[362104922,1748001032613,-161.3405854,0.00027239,2]
[362104923,1748001032623,-502.70529004,0.00027239,12]
[362104924,1748001032633,-167.62513039,0.00027239,2]
[362104925,1748001032642,-17321.63721597,0.00027242,2]
[362104926,1748001032652,-35955.1194,0.00027243,2]
[362104927,1748001032661,-386.7299,0.00027243,2]
[362104928,1748001032670,-1000.0,0.00027243,2]
[362104929,1748001032680,-14280.45327363,0.00027249,4]
[362104932,1748001032715,-1512.51783303,0.00027249,4]
[362104935,1748001032726,-32958.0,0.00027249,4]
[362104941,1748001032777,-309.91719384,0.00027249,4]
[362104943,1748001032788,-1606.43996,0.00027249,4]
[362104944,1748001032832,-130989.56228655,0.00027249,4]
[362104945,1748001032844,-3299.13641251,0.00027249,4]
[362104946,1748001032856,-346.5,0.00027249,4]
[362105031,1748001038402,-216.12,0.00026363,2]
[362105032,1748001038411,-268.35,0.00027248,2]
[362105033,1748001038425,-31.65,0.00027248,2]
[362105034,1748001038436,-242.65,0.00027249,4]
[362105035,1748001038447,-437.99539351,0.00027249,4]
[362105036,1748001038463,-317.5967026,0.00027249,4]
[362105037,1748001038514,-2153.54532427,0.00027249,4]
[362105038,1748001038571,-9717.55613477,0.00027249,4]
[362105039,1748001038583,-638.09123362,0.00027249,4]
[362105040,1748001038627,-4430.0,0.00027249,4]
[362105168,1748001040394,-261.969,0.00027249,4]
[362105174,1748001040451,-401.82434013,0.00027249,4]
[362105176,1748001040464,-763.8892603,0.00027249,4]
[362105179,1748001040476,-184504.87301221,0.00027249,4]
[362105182,1748001040507,-14184.94348228,0.00027249,4]
[362105185,1748001040520,-1892.83244653,0.00027249,4]
[362105196,1748001040668,-3761.05,0.00027249,4]
[362105205,1748001040749,-385.8308607,0.00027249,4]
[362105207,1748001040761,-571.71661056,0.00027249,4]
[362105210,1748001040773,-1630.43826725,0.00027249,4]
[362105216,1748001040832,-3745.6938242,0.00027249,4]
[362105290,1748001043435,-1098.4,0.00027249,4]
[362105292,1748001043446,-292.0679756,0.00027249,4]
[362105294,1748001043458,-36196.58737758,0.00027249,4]
[362105296,1748001043470,-20892.47846785,0.00027249,4]
[362105298,1748001043480,-93324.10390269,0.00027249,2]
[362105307,1748001043545,-6874.02450403,0.00027249,2]
[362105309,1748001043562,-18529.32648592,0.00027249,2]
[362105311,1748001043574,-2438.8001,0.00027249,2]
[362105339,1748001044633,-23796.77630736,0.00027249,2]
[362105340,1748001044644,-1000.0,0.00027254,2]
[362105341,1748001044654,-172.38703256,0.00027258,2]
[362105342,1748001044665,-5000.0,0.00027287,2]
[362105343,1748001044675,-207.4,0.00027307,2]
[362105344,1748001044685,-292.99029029,0.00027312,2]
[362105345,1748001044695,-229.28293663,0.00027339,4]
[362105346,1748001044704,-124445.9969,0.00027339,3]
[362105347,1748001044714,-11313.2724454,0.00027339,3]
[362105348,1748001044723,-11313.2724454,0.00027348,3]
[362105349,1748001044733,-12614.7272137,0.00027349,3]
[362105350,1748001044742,-151.0,0.00027349,7]
[362105351,1748001044752,-151.0,0.00027349,7]
[362105352,1748001044761,-151.0,0.00027349,7]
[362105353,1748001044771,-542.4227,0.00027352,2]
[362105354,1748001044781,-588.89911124,0.00027358,2]
[362105355,1748001044791,-113132.724454,0.00027358,3]
[362105356,1748001044801,-100917.817709,0.00027358,3]
[362105357,1748001044816,-269.0028081,0.00027358,2]
[362105358,1748001044825,-151.0,0.00027358,7]
[362105359,1748001044834,-563.066995,0.00027358,7]
[362105360,1748001044844,-151.0,0.00027358,7]
[362105361,1748001044853,-151.0,0.00027358,7]
[362105362,1748001044863,-151.0,0.00027358,7]
[362105363,1748001044872,-151.0,0.00027358,7]
[362105364,1748001044883,-151.0,0.00027358,7]
[362105365,1748001044893,-152.810104,0.00027358,7]
[362105366,1748001044903,-151.624269,0.00027358,7]
[362105367,1748001044913,-151.0,0.00027358,7]
[362105368,1748001044923,-151.0,0.00027358,7]
[362105369,1748001044932,-151.0,0.00027358,7]
[362105370,1748001044941,-151.0,0.00027358,7]
[362105371,1748001044951,-151.0,0.00027358,7]
[362105372,1748001044961,-151.0,0.00027358,7]
[362105373,1748001044971,-646.664953,0.00027358,7]
[362105374,1748001044981,-646.664953,0.00027358,7]
[362105375,1748001044992,-156.494447,0.00027358,7]
[362105376,1748001045002,-270.318069,0.00027358,7]
[362105377,1748001045012,-270.318069,0.00027358,7]
[362105378,1748001045022,-151.0,0.00027359,7]